[Event "Titled Tuesday Blitz July 4 Late 2023"]
[White "Womacka, Mathias"]
[Black "ElenGajger"]
[WhiteFideId "4611390"]
[WhiteElo "2518"]
[BlackElo "2378"]
[Result "0-1"]
[Round "7"]
[TimeControl "180+2"]
[Date "2023.07.04"]
[WhiteClock "0:00:00"]
[BlackClock "0:00:32"]
[Board "87"]

1. e4 {[%clk 0:03:00]}  c5 {[%clk 0:02:59]} 2. Nf3 {[%clk 0:02:59]}  g6 {[%clk 0:02:59]} 3. d4 {[%clk 0:02:58]}  cxd4 {[%clk 0:03:00]} 4. Nxd4 {[%clk 0:02:58]}  Bg7 {[%clk 0:03:00]} 5. c4 {[%clk 0:02:57]}  Nc6 {[%clk 0:03:00]} 6. Be3 {[%clk 0:02:57]}  Nf6 {[%clk 0:03:00]} 7. Nc3 {[%clk 0:02:56]}  O-O {[%clk 0:03:01]} 8. Be2 {[%clk 0:02:55]}  d6 {[%clk 0:03:01]} 9. O-O {[%clk 0:02:53]}  Bd7 {[%clk 0:03:00]} 10. Qd2 {[%clk 0:02:53]}  Nxd4 {[%clk 0:02:56]} 11. Bxd4 {[%clk 0:02:54]}  Bc6 {[%clk 0:02:54]} 12. f3 {[%clk 0:02:54]}  a5 {[%clk 0:02:52]} 13. b3 {[%clk 0:02:54]}  Nd7 {[%clk 0:02:52]} 14. Be3 {[%clk 0:02:53]}  Nc5 {[%clk 0:02:51]} 15. Rac1 {[%clk 0:02:53]}  Qb6 {[%clk 0:02:48]} 16. Rc2 {[%clk 0:02:33]}  Rfc8 {[%clk 0:02:45]} 17. Rb1 {[%clk 0:02:22]}  h5 {[%clk 0:02:43]} 18. Bf1 {[%clk 0:02:10]}  Kh7 {[%clk 0:02:42]} 19. Nd5 {[%clk 0:01:51]}  Bxd5 {[%clk 0:02:40]} 20. exd5 {[%clk 0:01:41]}  Qb4 {[%clk 0:02:38]} 21. Qc1 {[%clk 0:01:40]}  a4 {[%clk 0:02:25]} 22. a3 {[%clk 0:01:31]}  Nxb3 {[%clk 0:02:09]} 23. axb4 {[%clk 0:01:30]}  Nxc1 {[%clk 0:02:09]} 24. Rbxc1 {[%clk 0:01:27]}  a3 {[%clk 0:02:07]} 25. Ra2 {[%clk 0:01:27]}  Ra4 {[%clk 0:02:04]} 26. c5 {[%clk 0:01:06]}  Rxb4 {[%clk 0:01:56]} 27. cxd6 {[%clk 0:01:02]}  Rxc1 {[%clk 0:01:53]} 28. Bxc1 {[%clk 0:01:03]}  Bd4+ {[%clk 0:01:46]} 29. Kh1 {[%clk 0:00:51]}  Rb1 {[%clk 0:01:44]} 30. g4 {[%clk 0:00:45]}  exd6 {[%clk 0:01:39]} 31. Bxa3 {[%clk 0:00:38]}  Rxf1+ {[%clk 0:01:37]} 32. Kg2 {[%clk 0:00:38]}  Rg1+ {[%clk 0:01:35]} 33. Kh3 {[%clk 0:00:37]}  hxg4+ {[%clk 0:01:34]} 34. fxg4 {[%clk 0:00:37]}  Be5 {[%clk 0:01:32]} 35. Bb2 {[%clk 0:00:35]}  Re1 {[%clk 0:01:12]} 36. Bxe5 {[%clk 0:00:34]}  Rxe5 {[%clk 0:01:10]} 37. Rb2 {[%clk 0:00:32]}  Rxd5 {[%clk 0:01:10]} 38. Rxb7 {[%clk 0:00:32]}  Kg7 {[%clk 0:01:04]} 39. Kg3 {[%clk 0:00:32]}  Kf6 {[%clk 0:01:03]} 40. h4 {[%clk 0:00:30]}  Ke6 {[%clk 0:01:01]} 41. g5 {[%clk 0:00:28]}  Rd3+ {[%clk 0:01:00]} 42. Kf4 {[%clk 0:00:27]}  Rd4+ {[%clk 0:01:00]} 43. Kg3 {[%clk 0:00:27]}  Rc4 {[%clk 0:00:56]} 44. Ra7 {[%clk 0:00:23]}  Rc6 {[%clk 0:00:56]} 45. Kf4 {[%clk 0:00:20]}  d5 {[%clk 0:00:54]} 46. Ke3 {[%clk 0:00:14]}  Rc4 {[%clk 0:00:50]} 47. Ra6+ {[%clk 0:00:14]}  Ke7 {[%clk 0:00:47]} 48. Ra7+ {[%clk 0:00:14]}  Kf8 {[%clk 0:00:47]} 49. Rd7 {[%clk 0:00:13]}  Rxh4 {[%clk 0:00:46]} 50. Rxd5 {[%clk 0:00:13]}  Rc4 {[%clk 0:00:46]} 51. Kf3 {[%clk 0:00:13]}  Ke7 {[%clk 0:00:46]} 52. Ra5 {[%clk 0:00:12]}  Rd4 {[%clk 0:00:45]} 53. Ra7+ {[%clk 0:00:11]}  Ke6 {[%clk 0:00:45]} 54. Ra6+ {[%clk 0:00:11]}  Rd6 {[%clk 0:00:40]} 55. Ra7 {[%clk 0:00:11]}  Rd7 {[%clk 0:00:39]} 56. Ra5 {[%clk 0:00:10]}  Rd5 {[%clk 0:00:38]} 57. Ra6+ {[%clk 0:00:10]}  Kf5 {[%clk 0:00:36]} 58. Rf6+ {[%clk 0:00:10]}  Kxg5 {[%clk 0:00:36]} 59. Rxf7 {[%clk 0:00:11]}  Rf5+ {[%clk 0:00:37]} 60. Rxf5+ {[%clk 0:00:10]}  Kxf5 {[%clk 0:00:37]} 61. Kg3 {[%clk 0:00:11]}  Kg5 {[%clk 0:00:37]} 62. Kf3 {[%clk 0:00:11]}  Kh4 {[%clk 0:00:38]} 63. Kf4 {[%clk 0:00:12]}  g5+ {[%clk 0:00:36]} 64. Kf3 {[%clk 0:00:12]}  Kh3 {[%clk 0:00:36]} 65. Kf2 {[%clk 0:00:12]}  Kh2 {[%clk 0:00:34]} 66. Kf3 {[%clk 0:00:12]}  Kh3 {[%clk 0:00:34]} 67. Kf2 {[%clk 0:00:13]}  g4 {[%clk 0:00:34]} 68. Kg1 {[%clk 0:00:13]}  Kg3 {[%clk 0:00:34]} 69. Kh1 {[%clk 0:00:13]}  Kf2 {[%clk 0:00:32]} 70. Kh2 {[%clk 0:00:00]}  g3+ {[%clk 0:00:32]} 0-1


[Site "https://www.chess.com"]

[Event "Titled Tuesday Blitz July 4 Late 2023"]
[White "Bazilius, Augustinas"]
[Black "Camacho Collados, Marcos"]
[WhiteFideId "12832251"]
[BlackFideId "2266237"]
[WhiteElo "2373"]
[BlackElo "2513"]
[Result "0-1"]
[Round "7"]
[TimeControl "180+2"]
[Date "2023.07.04"]
[WhiteClock "0:01:13"]
[BlackClock "0:01:53"]
[Board "88"]

1. d4 {[%clk 0:02:59]}  d5 {[%clk 0:02:55]} 2. c4 {[%clk 0:02:58]}  e6 {[%clk 0:02:55]} 3. Nf3 {[%clk 0:02:58]}  a6 {[%clk 0:02:55]} 4. cxd5 {[%clk 0:02:50]}  exd5 {[%clk 0:02:55]} 5. Bg5 {[%clk 0:02:50]}  Be7 {[%clk 0:02:54]} 6. Bxe7 {[%clk 0:02:45]}  Nxe7 {[%clk 0:02:54]} 7. e3 {[%clk 0:02:45]}  Bf5 {[%clk 0:02:54]} 8. Bd3 {[%clk 0:02:41]}  O-O {[%clk 0:02:52]} 9. O-O {[%clk 0:02:40]}  Nd7 {[%clk 0:02:46]} 10. Nbd2 {[%clk 0:02:32]}  Bxd3 {[%clk 0:02:45]} 11. Re1 {[%clk 0:02:20]}  Bg6 {[%clk 0:02:45]} 12. h4 {[%clk 0:02:17]}  h6 {[%clk 0:02:43]} 13. g4 {[%clk 0:02:17]}  h5 {[%clk 0:02:40]} 14. g5 {[%clk 0:02:16]}  Nf5 {[%clk 0:02:39]} 15. Kg2 {[%clk 0:02:13]}  Re8 {[%clk 0:02:33]} 16. Nf1 {[%clk 0:02:10]}  Nxh4+ {[%clk 0:02:19]} 17. Nxh4 {[%clk 0:02:10]}  Qxg5+ {[%clk 0:02:20]} 18. Kh3 {[%clk 0:02:08]}  Re4 {[%clk 0:02:20]} 19. Nf3 {[%clk 0:02:02]}  Bf5+ {[%clk 0:02:20]} 20. Kh2 {[%clk 0:01:58]}  Qf6 {[%clk 0:01:52]} 21. Ng3 {[%clk 0:01:52]}  Bg4 {[%clk 0:01:52]} 22. Nxe4 {[%clk 0:01:13]}  dxe4 {[%clk 0:01:53]} 0-1


[Site "https://www.chess.com"]

[Event "Titled Tuesday Blitz July 4 Late 2023"]
[White "kripri"]
[Black "Hamitevici, Vladimir"]
[BlackFideId "13902393"]
[WhiteElo "2339"]
[BlackElo "2498"]
[Result "0-1"]
[Round "7"]
[TimeControl "180+2"]
[Date "2023.07.04"]
[WhiteClock "0:00:06"]
[BlackClock "0:00:16"]
[Board "90"]

1. e4 {[%clk 0:03:00]}  c6 {[%clk 0:02:59]} 2. d4 {[%clk 0:03:01]}  Na6 {[%clk 0:03:00]} 3. Bxa6 {[%clk 0:02:59]}  Qa5+ {[%clk 0:02:59]} 4. Nc3 {[%clk 0:02:56]}  Qxa6 {[%clk 0:02:59]} 5. Nf3 {[%clk 0:02:57]}  g6 {[%clk 0:02:59]} 6. Be3 {[%clk 0:02:54]}  Bg7 {[%clk 0:02:57]} 7. Qd2 {[%clk 0:02:54]}  d6 {[%clk 0:02:53]} 8. O-O-O {[%clk 0:02:53]}  b5 {[%clk 0:02:51]} 9. Kb1 {[%clk 0:02:50]}  Nf6 {[%clk 0:02:48]} 10. a3 {[%clk 0:02:36]}  Qb7 {[%clk 0:02:12]} 11. e5 {[%clk 0:02:28]}  dxe5 {[%clk 0:01:24]} 12. Nxe5 {[%clk 0:02:19]}  O-O {[%clk 0:01:16]} 13. Bh6 {[%clk 0:02:17]}  Be6 {[%clk 0:00:59]} 14. Bxg7 {[%clk 0:02:15]}  Kxg7 {[%clk 0:01:00]} 15. h4 {[%clk 0:02:07]}  h5 {[%clk 0:00:59]} 16. Nd3 {[%clk 0:01:57]}  Bf5 {[%clk 0:00:53]} 17. Nc5 {[%clk 0:01:53]}  Qc7 {[%clk 0:00:52]} 18. f3 {[%clk 0:01:45]}  a5 {[%clk 0:00:50]} 19. N3e4 {[%clk 0:01:35]}  Nxe4 {[%clk 0:00:39]} 20. fxe4 {[%clk 0:01:35]}  Bg4 {[%clk 0:00:39]} 21. Rde1 {[%clk 0:01:32]}  e5 {[%clk 0:00:27]} 22. Qc3 {[%clk 0:01:24]}  Rfe8 {[%clk 0:00:23]} 23. Rhf1 {[%clk 0:01:03]}  exd4 {[%clk 0:00:20]} 24. Qxd4+ {[%clk 0:01:02]}  Qe5 {[%clk 0:00:21]} 25. Qxe5+ {[%clk 0:00:56]}  Rxe5 {[%clk 0:00:22]} 26. Nd3 {[%clk 0:00:56]}  Re7 {[%clk 0:00:22]} 27. e5 {[%clk 0:00:47]}  Rae8 {[%clk 0:00:22]} 28. Rf2 {[%clk 0:00:36]}  Bf5 {[%clk 0:00:19]} 29. Rfe2 {[%clk 0:00:36]}  Bxd3 {[%clk 0:00:17]} 30. cxd3 {[%clk 0:00:36]}  Rd8 {[%clk 0:00:18]} 31. Kc2 {[%clk 0:00:36]}  Rd4 {[%clk 0:00:16]} 32. Re4 {[%clk 0:00:35]}  Rd5 {[%clk 0:00:17]} 33. R1e3 {[%clk 0:00:21]}  Kf8 {[%clk 0:00:17]} 34. e6 {[%clk 0:00:18]}  f6 {[%clk 0:00:14]} 35. Rf3 {[%clk 0:00:15]}  Kg7 {[%clk 0:00:14]} 36. Rfe3 {[%clk 0:00:15]}  a4 {[%clk 0:00:14]} 37. Kc3 {[%clk 0:00:14]}  f5 {[%clk 0:00:13]} 38. Rd4 {[%clk 0:00:08]}  Rc5+ {[%clk 0:00:07]} 39. Kb4 {[%clk 0:00:08]}  Rc1 {[%clk 0:00:07]} 40. Rd7 {[%clk 0:00:05]}  Kf6 {[%clk 0:00:08]} 41. Rxe7 {[%clk 0:00:05]}  Kxe7 {[%clk 0:00:09]} 42. d4 {[%clk 0:00:05]}  Rc2 {[%clk 0:00:08]} 43. Rc3 {[%clk 0:00:04]}  Rxb2+ {[%clk 0:00:08]} 44. Kc5 {[%clk 0:00:04]}  Kxe6 {[%clk 0:00:06]} 45. Kxc6 {[%clk 0:00:05]}  Rb3 {[%clk 0:00:05]} 46. d5+ {[%clk 0:00:04]}  Ke5 {[%clk 0:00:06]} 47. Rc5 {[%clk 0:00:05]}  Rxa3 {[%clk 0:00:05]} 48. d6+ {[%clk 0:00:05]}  Ke6 {[%clk 0:00:06]} 49. d7 {[%clk 0:00:06]}  Rd3 {[%clk 0:00:07]} 50. Rxb5 {[%clk 0:00:05]}  Rd6+ {[%clk 0:00:07]} 51. Kc5 {[%clk 0:00:04]}  Rd5+ {[%clk 0:00:07]} 52. Kb4 {[%clk 0:00:04]}  Rd4+ {[%clk 0:00:08]} 53. Ka3 {[%clk 0:00:04]}  Kxd7 {[%clk 0:00:08]} 54. Rb7+ {[%clk 0:00:05]}  Ke6 {[%clk 0:00:08]} 55. Rb6+ {[%clk 0:00:06]}  Rd6 {[%clk 0:00:08]} 56. Rb4 {[%clk 0:00:05]}  Ra6 {[%clk 0:00:07]} 57. Rc4 {[%clk 0:00:05]}  Ke5 {[%clk 0:00:08]} 58. Rb4 {[%clk 0:00:05]}  f4 {[%clk 0:00:08]} 59. Rb5+ {[%clk 0:00:05]}  Ke4 {[%clk 0:00:09]} 60. Rg5 {[%clk 0:00:05]}  f3 {[%clk 0:00:08]} 61. gxf3+ {[%clk 0:00:06]}  Kxf3 {[%clk 0:00:09]} 62. Rg1 {[%clk 0:00:06]}  Kf4 {[%clk 0:00:10]} 63. Rg5 {[%clk 0:00:06]}  Re6 {[%clk 0:00:10]} 64. Rg2 {[%clk 0:00:06]}  Ra6 {[%clk 0:00:09]} 65. Rg5 {[%clk 0:00:05]}  Ke3 {[%clk 0:00:10]} 66. Rg3+ {[%clk 0:00:05]}  Ke4 {[%clk 0:00:10]} 67. Rg5 {[%clk 0:00:06]}  Kf4 {[%clk 0:00:11]} 68. Rg2 {[%clk 0:00:06]}  Kf5 {[%clk 0:00:11]} 69. Rg5+ {[%clk 0:00:06]}  Kf6 {[%clk 0:00:12]} 70. Rg1 {[%clk 0:00:07]}  Re6 {[%clk 0:00:11]} 71. Kxa4 {[%clk 0:00:07]}  Re4+ {[%clk 0:00:12]} 72. Kb3 {[%clk 0:00:07]}  Rxh4 {[%clk 0:00:13]} 73. Kc3 {[%clk 0:00:08]}  Rg4 {[%clk 0:00:13]} 74. Rf1+ {[%clk 0:00:08]}  Kg5 {[%clk 0:00:13]} 75. Kd3 {[%clk 0:00:08]}  Rf4 {[%clk 0:00:13]} 76. Rg1+ {[%clk 0:00:08]}  Kf5 {[%clk 0:00:14]} 77. Ke3 {[%clk 0:00:08]}  g5 {[%clk 0:00:14]} 78. Rb1 {[%clk 0:00:07]}  h4 {[%clk 0:00:14]} 79. Rb5+ {[%clk 0:00:07]}  Kg4 {[%clk 0:00:15]} 80. Rb2 {[%clk 0:00:07]}  h3 {[%clk 0:00:15]} 81. Rb1 {[%clk 0:00:06]}  h2 {[%clk 0:00:15]} 82. Rh1 {[%clk 0:00:07]}  Kg3 {[%clk 0:00:16]} 83. Ke2 {[%clk 0:00:06]}  Kg2 {[%clk 0:00:16]} 0-1


[Site "https://www.chess.com"]

[Event "Titled Tuesday Blitz July 4 Late 2023"]
[White "Deng, Henry"]
[Black "Gerbelli Neto, Eduardo"]
[WhiteFideId "30965454"]
[BlackFideId "2103281"]
[WhiteElo "2494"]
[BlackElo "2322"]
[Result "1/2-1/2"]
[Round "7"]
[TimeControl "180+2"]
[Date "2023.07.04"]
[WhiteClock "0:00:22"]
[BlackClock "0:00:24"]
[Board "91"]

1. e4 {[%clk 0:03:00]}  e5 {[%clk 0:02:57]} 2. Nf3 {[%clk 0:03:01]}  Nc6 {[%clk 0:02:57]} 3. Bc4 {[%clk 0:03:01]}  Nf6 {[%clk 0:02:57]} 4. d4 {[%clk 0:02:55]}  exd4 {[%clk 0:02:56]} 5. e5 {[%clk 0:02:55]}  d5 {[%clk 0:02:56]} 6. Bb5 {[%clk 0:02:54]}  Ne4 {[%clk 0:02:56]} 7. Nxd4 {[%clk 0:02:54]}  Bc5 {[%clk 0:02:57]} 8. Be3 {[%clk 0:02:52]}  O-O {[%clk 0:02:56]} 9. Nxc6 {[%clk 0:02:52]}  bxc6 {[%clk 0:02:54]} 10. Bxc5 {[%clk 0:02:53]}  Nxc5 {[%clk 0:02:50]} 11. Bxc6 {[%clk 0:02:54]}  Rb8 {[%clk 0:02:36]} 12. Qxd5 {[%clk 0:02:49]}  Qxd5 {[%clk 0:02:26]} 13. Bxd5 {[%clk 0:02:49]}  Rxb2 {[%clk 0:02:25]} 14. Bb3 {[%clk 0:02:13]}  Nxb3 {[%clk 0:02:07]} 15. axb3 {[%clk 0:01:59]}  Rxc2 {[%clk 0:02:05]} 16. O-O {[%clk 0:01:59]}  a6 {[%clk 0:02:02]} 17. Na3 {[%clk 0:01:56]}  Rb2 {[%clk 0:01:57]} 18. Rfc1 {[%clk 0:01:55]}  Rxb3 {[%clk 0:01:53]} 19. Rxc7 {[%clk 0:01:55]}  Be6 {[%clk 0:01:45]} 20. Nc2 {[%clk 0:01:52]}  Rfb8 {[%clk 0:01:44]} 21. h3 {[%clk 0:01:50]}  Rb1+ {[%clk 0:01:43]} 22. Rxb1 {[%clk 0:01:49]}  Rxb1+ {[%clk 0:01:44]} 23. Kh2 {[%clk 0:01:49]}  g6 {[%clk 0:01:40]} 24. Nd4 {[%clk 0:01:47]}  Bd5 {[%clk 0:01:32]} 25. Rc5 {[%clk 0:01:43]}  Bb7 {[%clk 0:01:19]} 26. e6 {[%clk 0:01:34]}  fxe6 {[%clk 0:01:16]} 27. Nxe6 {[%clk 0:01:34]}  Rb2 {[%clk 0:00:57]} 28. Kg3 {[%clk 0:01:31]}  Rb3+ {[%clk 0:00:56]} 29. f3 {[%clk 0:01:31]}  Rb5 {[%clk 0:00:36]} 30. Rc7 {[%clk 0:01:29]}  a5 {[%clk 0:00:36]} 31. Rg7+ {[%clk 0:01:08]}  Kh8 {[%clk 0:00:36]} 32. Rd7 {[%clk 0:01:06]}  Kg8 {[%clk 0:00:35]} 33. h4 {[%clk 0:01:01]}  a4 {[%clk 0:00:34]} 34. Nc7 {[%clk 0:00:54]}  Rb2 {[%clk 0:00:29]} 35. Ne8 {[%clk 0:00:52]}  Kf8 {[%clk 0:00:25]} 36. Nf6 {[%clk 0:00:52]}  h5 {[%clk 0:00:24]} 37. Nh7+ {[%clk 0:00:46]}  Kg8 {[%clk 0:00:23]} 38. Nf6+ {[%clk 0:00:45]}  Kf8 {[%clk 0:00:23]} 39. Kf4 {[%clk 0:00:34]}  a3 {[%clk 0:00:24]} 40. Nh7+ {[%clk 0:00:20]}  Kg8 {[%clk 0:00:23]} 41. Nf6+ {[%clk 0:00:21]}  Kf8 {[%clk 0:00:23]} 42. Nh7+ {[%clk 0:00:21]}  Kg8 {[%clk 0:00:23]} 43. Nf6+ {[%clk 0:00:22]}  Kf8 {[%clk 0:00:24]} 1/2-1/2


[Site "https://www.chess.com"]

[Event "Titled Tuesday Blitz July 4 Late 2023"]
[White "Zhang, Derek"]
[Black "Bullen, Alex"]
[WhiteFideId "2087871"]
[BlackFideId "1801627"]
[WhiteElo "2492"]
[BlackElo "2301"]
[Result "1-0"]
[Round "7"]
[TimeControl "180+2"]
[Date "2023.07.04"]
[WhiteClock "0:00:03"]
[BlackClock "0:00:00"]
[Board "92"]

1. Nf3 {[%clk 0:03:00]}  d5 {[%clk 0:02:59]} 2. c4 {[%clk 0:03:01]}  e6 {[%clk 0:02:58]} 3. e3 {[%clk 0:03:02]}  Nf6 {[%clk 0:02:58]} 4. Nc3 {[%clk 0:03:03]}  c5 {[%clk 0:02:57]} 5. cxd5 {[%clk 0:03:03]}  exd5 {[%clk 0:02:57]} 6. d4 {[%clk 0:03:03]}  Nc6 {[%clk 0:02:55]} 7. Be2 {[%clk 0:03:04]}  Bd6 {[%clk 0:02:54]} 8. dxc5 {[%clk 0:03:03]}  Bxc5 {[%clk 0:02:55]} 9. O-O {[%clk 0:03:04]}  O-O {[%clk 0:02:55]} 10. b3 {[%clk 0:03:04]}  Be6 {[%clk 0:02:48]} 11. Bb2 {[%clk 0:03:04]}  Re8 {[%clk 0:02:45]} 12. Rc1 {[%clk 0:03:04]}  Bd6 {[%clk 0:02:43]} 13. Na4 {[%clk 0:03:00]}  Rc8 {[%clk 0:02:41]} 14. Nd4 {[%clk 0:02:57]}  Nxd4 {[%clk 0:02:37]} 15. Bxd4 {[%clk 0:02:57]}  Bb8 {[%clk 0:02:36]} 16. Nc5 {[%clk 0:02:53]}  b6 {[%clk 0:02:22]} 17. Nd3 {[%clk 0:02:51]}  Ne4 {[%clk 0:02:15]} 18. f3 {[%clk 0:02:47]}  Qh4 {[%clk 0:01:47]} 19. Be5 {[%clk 0:01:44]}  Bxe5 {[%clk 0:01:27]} 20. Nxe5 {[%clk 0:01:45]}  Nc3 {[%clk 0:01:26]} 21. Qd2 {[%clk 0:01:46]}  Nxe2+ {[%clk 0:01:09]} 22. Qxe2 {[%clk 0:01:46]}  Qg5 {[%clk 0:01:08]} 23. Nc6 {[%clk 0:01:38]}  Bd7 {[%clk 0:01:01]} 24. f4 {[%clk 0:01:23]}  Qg6 {[%clk 0:00:49]} 25. Ne5 {[%clk 0:01:21]}  Qd6 {[%clk 0:00:41]} 26. Qd2 {[%clk 0:00:41]}  Bf5 {[%clk 0:00:38]} 27. Qd4 {[%clk 0:00:35]}  Be4 {[%clk 0:00:34]} 28. Rfd1 {[%clk 0:00:34]}  Qe6 {[%clk 0:00:24]} 29. Qa4 {[%clk 0:00:21]}  f6 {[%clk 0:00:21]} 30. Nc6 {[%clk 0:00:21]}  Qg4 {[%clk 0:00:18]} 31. Rd2 {[%clk 0:00:19]}  d4 {[%clk 0:00:16]} 32. exd4 {[%clk 0:00:07]}  Qxf4 {[%clk 0:00:13]} 33. Ne7+ {[%clk 0:00:05]}  Rxe7 {[%clk 0:00:13]} 34. Rxc8+ {[%clk 0:00:04]}  Kf7 {[%clk 0:00:14]} 35. Qc4+ {[%clk 0:00:02]}  Kg6 {[%clk 0:00:13]} 36. Rf2 {[%clk 0:00:03]}  Qe3 {[%clk 0:00:12]} 37. Qe2 {[%clk 0:00:02]}  Qg5 {[%clk 0:00:08]} 38. Qd2 {[%clk 0:00:02]}  Qg4 {[%clk 0:00:07]} 39. Rc1 {[%clk 0:00:02]}  Bf5 {[%clk 0:00:07]} 40. Re1 {[%clk 0:00:02]}  Rxe1+ {[%clk 0:00:07]} 41. Qxe1 {[%clk 0:00:03]}  Qxd4 {[%clk 0:00:06]} 42. h3 {[%clk 0:00:03]}  Qd5 {[%clk 0:00:05]} 43. Qd2 {[%clk 0:00:03]}  Qe4 {[%clk 0:00:05]} 44. Qe2 {[%clk 0:00:03]}  Qb1+ {[%clk 0:00:05]} 45. Kh2 {[%clk 0:00:03]}  Qa1 {[%clk 0:00:03]} 46. Qe3 {[%clk 0:00:03]}  Qb1 {[%clk 0:00:02]} 47. Qg3+ {[%clk 0:00:03]}  Kf7 {[%clk 0:00:02]} 48. Qf4 {[%clk 0:00:04]}  Qd3 {[%clk 0:00:00]} 49. Qxf5 {[%clk 0:00:03]} 1-0


[Site "https://www.chess.com"]

[Event "Titled Tuesday Blitz July 4 Late 2023"]
[White "Osmonbekov, Talaibek"]
[Black "Sun, Rick"]
[WhiteFideId "2017253"]
[BlackFideId "30909481"]
[WhiteElo "2170"]
[BlackElo "2588"]
[Result "0-1"]
[Round "7"]
[TimeControl "180+2"]
[Date "2023.07.04"]
[WhiteClock "0:00:00"]
[BlackClock "0:00:05"]
[Board "95"]

1. d4 {[%clk 0:03:00]}  Nf6 {[%clk 0:03:00]} 2. Bf4 {[%clk 0:02:59]}  g6 {[%clk 0:03:00]} 3. Nc3 {[%clk 0:02:59]}  d6 {[%clk 0:03:01]} 4. e4 {[%clk 0:02:59]}  Bg7 {[%clk 0:03:01]} 5. Qd2 {[%clk 0:03:00]}  O-O {[%clk 0:03:01]} 6. O-O-O {[%clk 0:03:00]}  Nc6 {[%clk 0:03:02]} 7. Nf3 {[%clk 0:02:59]}  b5 {[%clk 0:03:02]} 8. Bxb5 {[%clk 0:02:57]}  Bd7 {[%clk 0:03:02]} 9. d5 {[%clk 0:02:39]}  Na5 {[%clk 0:02:54]} 10. Bxd7 {[%clk 0:02:27]}  Nxd7 {[%clk 0:02:52]} 11. Bh6 {[%clk 0:02:25]}  Nc4 {[%clk 0:02:40]} 12. Qf4 {[%clk 0:02:12]}  Qb8 {[%clk 0:01:58]} 13. b3 {[%clk 0:01:55]}  Bxc3 {[%clk 0:01:52]} 14. Bxf8 {[%clk 0:01:55]}  Qb4 {[%clk 0:01:46]} 15. Rd3 {[%clk 0:01:40]}  Qa3+ {[%clk 0:00:57]} 16. Kd1 {[%clk 0:01:38]}  Nb2+ {[%clk 0:00:57]} 17. Ke2 {[%clk 0:01:38]}  Nxd3 {[%clk 0:00:58]} 18. Kxd3 {[%clk 0:01:38]}  Be5 {[%clk 0:00:35]} 19. Nxe5 {[%clk 0:00:57]}  Nxe5+ {[%clk 0:00:32]} 20. Kd2 {[%clk 0:00:49]}  Rxf8 {[%clk 0:00:30]} 21. h4 {[%clk 0:00:48]}  Qa5+ {[%clk 0:00:29]} 22. Ke2 {[%clk 0:00:42]}  Qxa2 {[%clk 0:00:29]} 23. Kd2 {[%clk 0:00:34]}  Qa5+ {[%clk 0:00:27]} 24. Ke2 {[%clk 0:00:30]}  Qb5+ {[%clk 0:00:26]} 25. Kd2 {[%clk 0:00:28]}  Qb4+ {[%clk 0:00:26]} 26. Kc1 {[%clk 0:00:25]}  Qc3 {[%clk 0:00:20]} 27. Rh3 {[%clk 0:00:25]}  Qe1+ {[%clk 0:00:15]} 28. Kb2 {[%clk 0:00:24]}  Rb8 {[%clk 0:00:14]} 29. h5 {[%clk 0:00:19]}  Nc4+ {[%clk 0:00:12]} 30. Ka2 {[%clk 0:00:18]}  Qa5+ {[%clk 0:00:11]} 31. Kb1 {[%clk 0:00:18]}  Qe1+ {[%clk 0:00:09]} 32. Ka2 {[%clk 0:00:17]}  Qe2 {[%clk 0:00:08]} 33. Qc1 {[%clk 0:00:13]}  Ne5 {[%clk 0:00:04]} 34. hxg6 {[%clk 0:00:12]}  fxg6 {[%clk 0:00:05]} 35. Kb2 {[%clk 0:00:10]}  Nc4+ {[%clk 0:00:05]} 36. Kc3 {[%clk 0:00:09]}  Ne5 {[%clk 0:00:05]} 37. Qh6 {[%clk 0:00:09]}  Qe1+ {[%clk 0:00:04]} 38. Kb2 {[%clk 0:00:09]}  Nc4+ {[%clk 0:00:05]} 39. Ka2 {[%clk 0:00:08]}  Qa5+ {[%clk 0:00:04]} 40. Kb1 {[%clk 0:00:08]}  Rxb3+ {[%clk 0:00:04]} 41. cxb3 {[%clk 0:00:08]}  Qe1+ {[%clk 0:00:05]} 42. Ka2 {[%clk 0:00:07]}  Qe2+ {[%clk 0:00:05]} 43. Qd2 {[%clk 0:00:00]}  Qxd2+ {[%clk 0:00:05]} 0-1


[Site "https://www.chess.com"]